fUST/lending_fUST_20250606
["ID","MTS","AMOUNT","RATE_DAILY","PERIOD"]
[364591867,1749154239023,-728.7498136,0.00023449,2]
[364591868,1749154239035,-1789.51274162,0.00023452,9]
[364591869,1749154239044,-159.47477654,0.00023509,2]
[364591870,1749154239053,-1789.51274162,0.00023555,9]
[364591871,1749154239065,-604.99,0.00023561,2]
[364591872,1749154239074,-2225.0,0.00023583,2]
[364591873,1749154239086,-709.0,0.00023583,2]
[364591874,1749154239095,-405.0,0.00023583,2]
[364591875,1749154239104,-725.37,0.00023596,2]
[364591876,1749154239113,-1295.23,0.00023596,2]
[364591877,1749154239123,-472.91,0.00023596,2]
[364591878,1749154239132,-756.85,0.00023596,2]
[364591879,1749154239142,-1789.51274162,0.00023659,9]
[364591880,1749154239152,-504.14560111,0.00023675,2]
[364591881,1749154239161,-530.64551447,0.00023736,2]
[364591882,1749154239170,-279.21,0.00023742,3]
[364591883,1749154239179,-345.0,0.00023751,2]
[364591884,1749154239188,-558.42,0.00023752,3]
[364591885,1749154239197,-1789.51274162,0.00023762,9]
[364591886,1749154239206,-642.735353,0.00023795,3]
[364591887,1749154239215,-837.66,0.00023815,3]
[364591888,1749154239225,-500.0,0.00023825,5]
[364591890,1749154239234,-604.99,0.00023835,2]
[364591892,1749154239243,-1789.51274162,0.00023866,10]
[364591894,1749154239252,-725.37,0.0002387,2]
[364591895,1749154239262,-1295.23,0.0002387,2]
[364591897,1749154239271,-472.91,0.0002387,2]
[364591900,1749154239283,-756.85,0.0002387,2]
[364591902,1749154239292,-150.0,0.000239,2]
[364591904,1749154239302,-792.6,0.00023902,3]
[364591905,1749154239311,-241.654,0.00023912,2]
[364591906,1749154239320,-150.0,0.00023912,2]
[364591907,1749154239330,-150.79,0.00023912,2]
[364591908,1749154239339,-150.0,0.00023912,2]
[364591909,1749154239348,-1789.51274162,0.00023969,10]
[364591910,1749154239357,-100000.0,0.0002399,2]
[364591911,1749154239367,-3395.66,0.00024,7]
[364591912,1749154239377,-500.73133342,0.00024,2]
[364591913,1749154239386,-160.0,0.00024,7]
[364591914,1749154239395,-215.0738,0.00024053,2]
[364591915,1749154239405,-1789.51274162,0.00024072,10]
[364591916,1749154239415,-800.0,0.00024074,2]
[364591917,1749154239425,-604.99,0.00024109,2]
[364591918,1749154239435,-725.37,0.00024144,2]
[364591919,1749154239445,-1295.23,0.00024144,2]
[364591921,1749154239567,-472.91,0.00024144,2]
[364591922,1749154239579,-756.85,0.00024144,2]
[364591923,1749154239589,-800.0,0.0002417,2]
[364591924,1749154239599,-1789.51274162,0.00024176,10]
[364591925,1749154239609,-2319.52968811,0.00024178,2]
[364591926,1749154239619,-2319.52968807,0.0002418,2]
[364591927,1749154239629,-2319.52968807,0.00024183,2]
[364591928,1749154239640,-2319.52968807,0.00024185,2]
[364591929,1749154239650,-1475.03733102,0.00024187,77]
[364591930,1749154239660,-2319.52968807,0.00024187,2]
[364591931,1749154239670,-1005.949684,0.00024187,2]
[364591932,1749154239680,-530.64551447,0.00024187,2]
[364591933,1749154239691,-2200.0,0.00024198,2]
[364591934,1749154239702,-2000.0,0.000242,2]
[364591935,1749154239711,-2000.0,0.000242,2]
[364591936,1749154239721,-2000.0,0.000242,2]
[364591937,1749154239730,-150.0,0.000242,5]
[364591938,1749154239740,-250.0,0.000242,30]
[364591939,1749154239750,-187.328088,0.000242,2]
[364591940,1749154239759,-1344.98,0.000242,7]
[364591941,1749154239769,-153.0,0.00024271,2]
[364591942,1749154239779,-153.0,0.00024271,2]
[364591943,1749154239794,-500.0,0.00024273,2]
[364591944,1749154239804,-500.0,0.00024273,2]
[364591945,1749154239814,-500.0,0.00024273,2]
[364591946,1749154239824,-501.44768991,0.00024273,2]
[364591947,1749154239834,-500.0,0.00024273,2]
[364591948,1749154239843,-163.5396541,0.00024273,2]
[364591949,1749154239853,-500.0,0.00024273,2]
[364591950,1749154239863,-328.55184798,0.00024273,2]
[364591952,1749154239873,-500.0,0.00024273,2]
[364591954,1749154239882,-500.0,0.00024273,2]
[364591956,1749154239892,-500.27058007,0.00024273,2]
[364591958,1749154239901,-500.0,0.00024273,2]
[364591960,1749154239911,-440.0,0.00024278,2]
[364591961,1749154239921,-440.0,0.00024278,2]
[364591963,1749154239931,-229.460376,0.00024279,7]
[364591965,1749154239941,-227.001605,0.00024279,7]
[364591967,1749154239951,-151.0,0.00024279,7]
[364591969,1749154239961,-151.0,0.00024279,7]
[364591971,1749154239973,-151.0,0.00024279,7]
[364591973,1749154239984,-151.0,0.00024279,7]
[364591975,1749154239993,-151.0,0.00024279,7]
[364591977,1749154240003,-151.0,0.00024279,7]
[364591978,1749154240016,-151.0,0.00024279,7]
[364591980,1749154240025,-151.0,0.00024279,7]
[364591982,1749154240039,-200.4649,0.00024279,7]
[364591985,1749154240050,-1789.51274162,0.00024279,10]
[364591987,1749154240059,-338254.87773599,0.00024287,20]
[364591989,1749154240074,-2239.88834833,0.00024287,20]
[364591991,1749154240086,-510.9,0.00024287,20]
[364591993,1749154240097,-1249.35049649,0.00024287,20]
[364591998,1749154240129,-91.77087732,0.00024287,20]
[364592001,1749154240148,-2299956.54246596,0.00024287,20]
[364592003,1749154240159,-1751484.86972618,0.00024287,20]
[364592005,1749154240171,-361355.64654881,0.00024287,20]
[364592042,1749154240576,-248.88845504,0.00024287,20]
[364592043,1749154240606,430.0,0.00019212,2]
[364592044,1749154240648,440.0,0.00019212,2]
[364592045,1749154240760,185.06,0.00019486,2]
[364592046,1749154242203,440.0,0.00019212,2]
[364592048,1749154242394,420.0,0.00019486,2]
[364592049,1749154242423,440.0,0.00019451,2]
[364592052,1749154242654,440.0,0.00019212,2]
[364592053,1749154242685,440.0,0.00019725,2]
[364592064,1749154242897,430.0,0.00019486,2]
[364592187,1749154244324,430.0,0.00019212,2]
[364592292,1749154245301,440.0,0.00019212,2]
[364592329,1749154245588,440.0,0.00019486,2]
[364592359,1749154245859,440.0,0.0001976,2]
[364592395,1749154246198,-56.08595326,0.00024277,10]
[364592397,1749154246211,-624.41404674,0.00024277,10]
[364592399,1749154246220,-883.91742809,0.00024287,20]
[364593048,1749154252973,-473016.65329882,0.00024287,20]
[364593067,1749154253148,-1921.50470218,0.00024287,20]
[364593069,1749154253161,-1460.1979482,0.00024287,20]
[364593085,1749154253304,440.0,0.00019212,2]
[364593089,1749154253336,440.0,0.00019486,2]
[364593093,1749154253367,167.11221651,0.00018356,2]
[364593097,1749154253392,272.88778349,0.00018356,2]
[364593101,1749154253424,341.76,0.0001976,2]
[364593105,1749154253454,440.0,0.0001863,2]
[364593113,1749154253523,440.0,0.00019212,2]
[364593118,1749154253555,420.0,0.00019486,2]
[364593123,1749154253600,531.58129115,0.00019212,2]
[364593130,1749154253654,440.0,0.00019451,2]
[364593134,1749154253688,440.0,0.00019725,2]
[364593154,1749154253875,440.0,0.00019212,2]
[364593158,1749154253904,440.0,0.00019212,2]
[364593185,1749154254157,366.7228238,0.00019486,2]
[364593189,1749154254187,440.0,0.00019486,2]
[364593214,1749154254421,440.0,0.0001976,2]
[364593245,1749154254718,500.47142295,0.00019212,2]
[364593356,1749154256027,440.0,0.00019212,2]
[364593383,1749154256279,440.0,0.00019486,2]
[364593411,1749154256543,440.0,0.0001976,2]
[364593455,1749154256985,440.0,0.00019212,2]
[364593480,1749154257301,440.0,0.00019486,2]
[364593490,1749154257420,420.0,0.00019212,2]
[364593502,1749154257547,444.66,0.0001976,2]
[364593639,1749154259193,440.0,0.00019451,2]
[364593665,1749154259480,466.92214919,0.00018939,2]
[364593770,1749154260857,500.0,0.00019212,2]
[364593796,1749154261105,500.0,0.00019627,2]
[364593826,1749154261374,500.0,0.00019725,2]
[364593845,1749154261543,440.0,0.00019212,2]
[364593874,1749154261825,212.3,0.00019486,2]
[364593886,1749154261923,440.0,0.00019212,2]
[364593898,1749154262041,440.0,0.00019212,2]
[364593919,1749154262228,440.0,0.00019451,2]
[364593923,1749154262262,440.0,0.00019486,2]
[364593930,1749154262318,440.0,0.00019486,2]
[364593960,1749154262602,440.0,0.0001976,2]
[364593986,1749154262849,440.0,0.00019212,2]
[364594006,1749154263102,420.0,0.00019486,2]
[364594055,1749154263699,440.0,0.00018356,2]
[364594079,1749154263938,440.0,0.0001863,2]
[364594107,1749154264212,440.0,0.00019212,2]
[364594135,1749154264466,440.0,0.00019486,2]
[364594294,1749154267049,440.0,0.00019212,2]
[364594311,1749154267350,440.0,0.0001976,2]
[364594317,1749154267397,440.0,0.00019486,2]
[364594349,1749154267692,440.0,0.0001976,2]
[364594507,1749154271287,538.50647375,0.00019212,2]
[364594508,1749154271373,430.0,0.00019212,2]
[364594510,1749154275364,440.0,0.00019212,2]
[364594511,1749154275502,420.0,0.00019486,2]
[364594512,1749154275855,420.0,0.00019212,2]
[364594513,1749154277072,430.0,0.00019212,2]
[364594514,1749154277345,430.0,0.00019212,2]
[364594515,1749154277740,430.0,0.00019212,2]
[364594516,1749154279415,440.0,0.00019212,2]
[364594517,1749154279672,440.0,0.00019486,2]
[364594518,1749154279948,440.0,0.0001976,2]
[364594519,1749154279977,440.0,0.00019212,2]
[364594520,1749154280349,420.0,0.00019486,2]
[364594521,1749154282466,521.72689183,0.00019212,2]
[364594522,1749154282842,440.0,0.00019451,2]
[364594523,1749154285154,440.0,0.00019451,2]
[364594524,1749154286942,430.0,0.00019212,2]
[364594525,1749154289736,430.0,0.00019212,2]
[364594526,1749154290572,440.0,0.00019212,2]
[364594527,1749154290712,440.0,0.00019212,2]
[364594528,1749154290823,440.0,0.00019486,2]
[364594529,1749154290970,440.0,0.00019486,2]
[364594530,1749154291963,532.04,0.00019212,2]
[364594531,1749154294733,440.0,0.00019212,2]
[364594532,1749154294986,440.0,0.00019486,2]
[364594533,1749154295250,410.0,0.0001976,2]
[364594534,1749154302333,176.1196156,0.00019212,2]
[364594535,1749154306832,440.0,0.00019212,2]
[364594536,1749154307033,440.0,0.00019212,2]
[364594537,1749154307120,440.0,0.00019486,2]
[364594538,1749154307148,440.0,0.00019212,2]
[364594539,1749154307285,420.0,0.00019486,2]
[364594540,1749154307361,420.0,0.0001976,2]
[364594541,1749154308481,440.0,0.00019212,2]
[364594542,1749154308815,420.0,0.00019486,2]
[364594543,1749154311412,440.0,0.00019212,2]
[364594544,1749154311691,440.0,0.00019486,2]
[364594545,1749154311945,440.0,0.0001976,2]
[364594546,1749154313472,440.0,0.00019212,2]
[364594547,1749154313524,440.0,0.00019212,2]
[364594548,1749154313728,420.0,0.00019486,2]
[364594549,1749154313783,440.0,0.00019486,2]
[364594550,1749154314030,440.0,0.0001976,2]
[364594551,1749154314796,440.0,0.00019212,2]
[364594552,1749154315324,440.0,0.00019486,2]
[364594553,1749154315572,440.0,0.0001976,2]
[364594554,1749154316945,440.0,0.00019212,2]
[364594555,1749154317245,420.0,0.00019486,2]
[364594556,1749154337107,440.0,0.00019212,2]
[364594557,1749154337355,420.0,0.00019486,2]
[364594558,1749154339292,440.0,0.00019212,2]
[364594559,1749154339658,420.0,0.00019486,2]
[364594560,1749154340286,430.0,0.00019212,2]
[364594561,1749154342526,430.0,0.00019212,2]
[364594562,1749154343566,440.0,0.00019212,2]
[364594563,1749154344171,440.0,0.00019486,2]
[364594564,1749154344428,440.0,0.0001976,2]
[364594565,1749154348217,440.0,0.00019212,2]
[364594566,1749154348489,420.0,0.00019486,2]
[364594567,1749154351153,440.0,0.00019212,2]
[364594568,1749154352179,500.0,0.00019212,2]
[364594569,1749154352589,500.0,0.00019627,2]
[364594570,1749154352682,500.0,0.00019725,2]
[364594571,1749154353842,420.0,0.00019212,2]
[364594572,1749154357198,440.0,0.00019212,2]
[364594573,1749154357379,430.0,0.00019212,2]
[364594574,1749154357447,440.0,0.00019486,2]
[364594575,1749154357703,440.0,0.0001976,2]
[364594576,1749154363688,430.0,0.00019212,2]
[364594577,1749154366161,420.0,0.00019212,2]
[364594578,1749154366549,430.0,0.00019212,2]
[364594579,1749154368925,430.0,0.00019451,2]
[364594580,1749154371237,440.0,0.00019212,2]
[364594581,1749154371498,195.39587358,0.00019486,2]
[364594582,1749154374099,440.0,0.00019212,2]
[364594583,1749154381676,430.0,0.00019212,2]
[364594584,1749154384899,390.18330665,0.00019451,2]
[364594585,1749154385024,278.67153468,0.00019212,2]
[364594586,1749154385049,151.32846532,0.00019212,2]
[364594587,1749154387283,440.0,0.00019212,2]
[364594588,1749154390105,421.91492152,0.00019212,2]
[364594589,1749154391533,430.0,0.00019212,2]
[364594590,1749154395226,440.0,0.00019212,2]
[364594591,1749154395890,440.0,0.00019212,2]
[364594592,1749154396336,440.0,0.00019212,2]
[364594593,1749154396421,434.91175788,0.00019212,2]
[364594594,1749154399906,440.0,0.00019212,2]
[364594595,1749154400161,440.0,0.00019486,2]
[364594596,1749154400583,420.0,0.0001976,2]
[364594597,1749154401427,440.0,0.00019212,2]
[364594598,1749154402165,410.0,0.00019486,2]
[364594599,1749154402815,430.0,0.00019212,2]
[364594600,1749154405120,440.0,0.00019212,2]
[364594601,1749154405930,371.04285288,0.00019212,2]
[364594602,1749154408184,440.0,0.00019451,2]
[364594603,1749154408461,440.0,0.00019725,2]
[364594604,1749154408818,440.0,0.00019212,2]
[364594605,1749154409002,440.0,0.00019212,2]
[364594606,1749154409646,410.0,0.00019486,2]
[364594607,1749154413461,430.0,0.00019212,2]
[364594608,1749154415293,440.0,0.00019212,2]
[364594609,1749154415900,420.0,0.00019486,2]
[364594610,1749154416774,440.0,0.00019212,2]
[364594611,1749154417897,440.0,0.00019212,2]
[364594612,1749154418578,440.0,0.00019451,2]
[364594613,1749154418818,440.0,0.00019725,2]
[364594614,1749154419085,440.0,0.00019999,2]
[364594615,1749154423299,440.0,0.00019212,2]
[364594616,1749154423625,430.0,0.00019212,2]
[364594617,1749154426948,155.0,0.00019999,2]
[364594618,1749154428963,440.0,0.00019212,2]
[364594621,1749154432368,430.0,0.00019451,2]
[364594622,1749154432541,440.0,0.00019212,2]
[364594623,1749154433345,430.0,0.00019212,2]
[364594624,1749154434276,430.0,0.00019212,2]
[364594625,1749154436232,440.0,0.00019212,2]
[364594626,1749154436505,440.0,0.00019486,2]
[364594627,1749154437131,420.0,0.0001976,2]
[364594628,1749154438203,430.0,0.00019212,2]
[364594629,1749154438395,442.375809,0.00019212,2]
[364594630,1749154439297,430.0,0.00019212,2]
[364594631,1749154445755,440.0,0.00019212,2]
[364594632,1749154446346,440.0,0.00019451,2]
[364594633,1749154446617,440.0,0.00019725,2]
[364594634,1749154447734,292.31723808,0.00019451,2]
[364594635,1749154455914,440.0,0.00019212,2]
[364594636,1749154456189,420.0,0.00019486,2]
[364594637,1749154459124,440.0,0.00019212,2]
[364594638,1749154459467,440.0,0.00019486,2]
[364594639,1749154459837,440.0,0.0001976,2]
[364594640,1749154459896,440.0,0.00019212,2]
[364594641,1749154460176,440.0,0.00019486,2]
[364594642,1749154460750,440.0,0.00019451,2]
[364594643,1749154461010,430.0,0.00019725,2]
[364594644,1749154461482,150.05110116,0.00019212,2]
[364594645,1749154461741,440.0,0.00019451,2]
[364594646,1749154462009,440.0,0.00019725,2]
[364594647,1749154462095,440.0,0.00019451,2]
[364594648,1749154462377,440.0,0.00019725,2]
[364594649,1749154468913,430.0,0.00019451,2]
[364594650,1749154468945,430.0,0.00019212,2]
[364594651,1749154469773,440.0,0.00019212,2]
[364594652,1749154470097,420.0,0.00019486,2]
[364594653,1749154472516,440.0,0.00019212,2]
[364594654,1749154472759,440.0,0.00019486,2]
[364594655,1749154473014,440.0,0.0001976,2]
[364594656,1749154477618,500.0,0.00019212,2]
[364594657,1749154477933,500.0,0.00019627,2]
[364594658,1749154491019,440.0,0.00019451,2]
[364594659,1749154491276,440.0,0.00019725,2]
[364594660,1749154493042,440.0,0.00019212,2]
[364594661,1749154493318,440.0,0.00019486,2]
[364594662,1749154495477,440.0,0.00019212,2]
[364594663,1749154495636,440.0,0.00019486,2]
[364594664,1749154495676,160.17829308,0.00019212,2]
[364594665,1749154497957,440.0,0.00019212,2]
[364594666,1749154498111,440.0,0.00019451,2]
[364594667,1749154498236,440.0,0.00019486,2]
[364594668,1749154498394,440.0,0.00019725,2]
[364594669,1749154498736,440.0,0.00019212,2]
[364594670,1749154498999,440.0,0.00019486,2]
[364594671,1749154499286,440.0,0.0001976,2]
[364594672,1749154500521,440.0,0.00019212,2]
[364594673,1749154500780,420.0,0.00019486,2]
[364594674,1749154503270,430.0,0.00019212,2]
[364594675,1749154506293,440.0,0.00019212,2]
[364594676,1749154506576,440.0,0.00019486,2]
[364594677,1749154508266,440.0,0.00019212,2]
[364594678,1749154508539,420.0,0.00019486,2]
[364594679,1749154512102,440.0,0.00019212,2]
[364594680,1749154512385,440.0,0.00019486,2]
[364594681,1749154512667,420.0,0.0001976,2]
[364594682,1749154514567,440.0,0.00019212,2]
[364594683,1749154514820,440.0,0.00019486,2]
[364594684,1749154515108,433.40906392,0.0001976,2]
[364594685,1749154516491,440.0,0.00019451,2]
[364594686,1749154516799,587.12885531,0.00019725,2]
[364594687,1749154520894,440.0,0.00019212,2]
[364594688,1749154521188,440.0,0.00019486,2]
[364594689,1749154521252,440.0,0.00019212,2]
[364594690,1749154521511,440.0,0.00019486,2]
[364594691,1749154527323,430.0,0.00019212,2]
[364594692,1749154528896,430.0,0.00019451,2]
[364594693,1749154530782,430.0,0.00019451,2]
[364594694,1749154531096,440.0,0.00019212,2]
[364594695,1749154531359,440.0,0.00019486,2]
[364594696,1749154531937,529.19181481,0.0001976,2]
[364594697,1749154532481,440.0,0.00019212,2]
[364594698,1749154533002,440.0,0.00019486,2]
[364594699,1749154533061,430.0,0.00019451,2]
[364594700,1749154534923,440.0,0.00019212,2]
[364594701,1749154535167,440.0,0.00019486,2]
[364594702,1749154537244,430.0,0.00019451,2]
[364594703,1749154537585,440.0,0.00019212,2]
[364594704,1749154537659,440.0,0.00019212,2]
[364594705,1749154537691,440.0,0.00019486,2]
[364594706,1749154537938,440.0,0.00019486,2]
[364594707,1749154538006,440.0,0.0001976,2]
[364594708,1749154541697,440.0,0.00019451,2]
[364594709,1749154541952,440.0,0.00019725,2]
[364594710,1749154542093,430.0,0.00019212,2]
[364594711,1749154542458,51.09899371,0.00019212,2]
[364594712,1749154542485,388.90100629,0.00019212,2]
[364594713,1749154542721,440.0,0.00019486,2]
[364594714,1749154543714,440.0,0.00019212,2]
[364594715,1749154544060,440.0,0.00019486,2]
[364594716,1749154544141,440.0,0.00019212,2]
[364594717,1749154544323,392.40592697,0.0001976,2]
[364594718,1749154544384,440.0,0.00019486,2]
[364594719,1749154549647,440.0,0.00019451,2]
[364594720,1749154549902,430.0,0.00019725,2]
[364594721,1749154552950,420.0,0.00019212,2]
[364594722,1749154558092,440.0,0.00019212,2]
[364594723,1749154558356,440.0,0.00019486,2]
[364594724,1749154558618,440.0,0.0001976,2]
[364594725,1749154558943,440.0,0.00019451,2]
[364594726,1749154559197,440.0,0.00019725,2]
[364594727,1749154559558,445.05348119,0.00019999,2]
[364594728,1749154567338,420.0,0.00019212,2]
[364594729,1749154571617,440.0,0.00019212,2]
[364594730,1749154571652,440.0,0.00019212,2]
[364594731,1749154571882,560.42,0.00019486,2]
[364594732,1749154571921,440.0,0.00019486,2]
[364594733,1749154572171,561.99780935,0.0001976,2]
[364594734,1749154574831,440.0,0.00019212,2]
[364594735,1749154575141,440.0,0.00019486,2]
[364594736,1749154575330,420.0,0.0001976,2]
[364594737,1749154575364,196.37070414,0.00019212,2]
[364594738,1749154575850,440.0,0.00019451,2]
[364594739,1749154576167,420.0,0.00019725,2]
[364594740,1749154578645,193.44643204,0.00018632,2]
[364594741,1749154578897,420.0,0.00019212,2]
[364594742,1749154580436,530.5066883,0.00019281,2]
[364594743,1749154580466,440.0,0.00019212,2]
[364594744,1749154580720,440.0,0.00019486,2]
[364594745,1749154583894,-300.0,0.00020033,2]
[364594746,1749154583922,-1200.0,0.00020033,2]
[364594747,1749154583950,-300.0,0.00020033,2]
[364594748,1749154583978,-300.0,0.00020033,2]
[364594749,1749154584006,-229.48950782,0.00020034,2]
[364594750,1749154584032,-2670.51049218,0.00020034,2]
[364594751,1749154584067,440.0,0.00019212,2]
[364594752,1749154584683,431.50273637,0.00019486,2]
[364594753,1749154585662,-5000.0,0.00020034,2]
[364594754,1749154588372,440.0,0.00019212,2]
[364594755,1749154588638,410.0,0.00019486,2]
[364594756,1749154593980,440.0,0.00019212,2]
[364594757,1749154594235,440.0,0.00019486,2]
[364594758,1749154594518,440.0,0.0001976,2]
[364594759,1749154595555,440.0,0.00019212,2]
[364594760,1749154595823,374.1,0.00019486,2]
[364594761,1749154598651,420.0,0.00019212,2]
[364594762,1749154600703,248.0000435,0.00019934,2]
[364594763,1749154600976,440.0,0.00019212,2]
[364594764,1749154601237,179.31889864,0.00019486,2]
[364594765,1749154601539,440.0,0.00019212,2]
[364594766,1749154601802,440.0,0.00019486,2]
[364594767,1749154607227,420.0,0.00019212,2]
[364594768,1749154611328,420.0,0.00019212,2]
[364594769,1749154612118,420.0,0.00019212,2]
[364594770,1749154614682,440.0,0.00019212,2]
[364594771,1749154614931,440.0,0.00019486,2]
[364594772,1749154615192,420.0,0.0001976,2]
[364594773,1749154617539,511.18295285,0.00019212,2]
[364594774,1749154619255,440.0,0.00019212,2]
[364594775,1749154619514,440.0,0.00019486,2]
[364594776,1749154619768,440.0,0.0001976,2]
[364594777,1749154623257,440.0,0.00019212,2]
[364594779,1749154623507,440.0,0.00019486,2]
[364594780,1749154624390,500.0,0.00019212,2]
[364594781,1749154624650,500.0,0.00019486,2]
[364594782,1749154624896,500.0,0.0001976,2]
[364594783,1749154628835,440.0,0.00019212,2]
[364594784,1749154629115,410.0,0.00019486,2]
[364594785,1749154630411,440.0,0.00019212,2]
[364594786,1749154630661,440.0,0.00019486,2]
[364594787,1749154630981,440.0,0.00019212,2]
[364594788,1749154631256,440.0,0.00019486,2]
[364594789,1749154631576,440.0,0.0001976,2]
[364594790,1749154632539,440.0,0.00019212,2]
[364594791,1749154632790,420.0,0.00019486,2]
[364594792,1749154634147,440.0,0.00019212,2]
[364594793,1749154634403,440.0,0.00019486,2]
[364594794,1749154634999,440.0,0.00019212,2]
[364594795,1749154635283,480.58,0.00019486,2]
[364594796,1749154636594,440.0,0.00019212,2]
[364594797,1749154636894,440.0,0.00019486,2]
[364594798,1749154637425,440.0,0.00019212,2]
[364594799,1749154637703,440.0,0.00019486,2]
[364594800,1749154638005,440.0,0.0001976,2]
[364594801,1749154641248,440.0,0.00019212,2]
[364594802,1749154641499,440.0,0.00019486,2]
[364594803,1749154641884,440.0,0.00019212,2]
[364594804,1749154642189,440.0,0.00019486,2]
[364594805,1749154642446,440.0,0.0001976,2]
[364594806,1749154644691,440.0,0.00019212,2]
[364594807,1749154644984,440.0,0.00019486,2]
[364594808,1749154645247,440.0,0.0001976,2]
[364594809,1749154648451,440.0,0.00019212,2]
[364594810,1749154648700,418.23930318,0.00019486,2]
[364594811,1749154650395,440.0,0.00019212,2]
[364594812,1749154650757,440.0,0.00019486,2]
[364594813,1749154651018,440.0,0.0001976,2]
[364594814,1749154653573,440.0,0.00019212,2]
[364594815,1749154653843,440.0,0.00019486,2]
[364594816,1749154654110,440.0,0.0001976,2]
[364594817,1749154655351,440.0,0.00019212,2]
[364594818,1749154655924,440.0,0.00019486,2]
[364594819,1749154656346,440.0,0.00019212,2]
[364594820,1749154656548,540.58418504,0.00019212,2]
[364594821,1749154656602,440.0,0.00019486,2]
[364594822,1749154657196,440.0,0.0001976,2]
[364594823,1749154663457,440.0,0.00019212,2]
[364594824,1749154663707,440.0,0.00019486,2]
[364594825,1749154663967,400.0,0.0001976,2]
[364594826,1749154666970,430.0,0.00019212,2]
[364594827,1749154668166,440.0,0.00019212,2]
[364594828,1749154668420,410.0,0.00019486,2]
[364594829,1749154669064,430.0,0.00019212,2]
[364594830,1749154669639,440.0,0.00019212,2]
[364594831,1749154669904,440.0,0.00019486,2]
[364594832,1749154670167,410.0,0.0001976,2]
[364594833,1749154674254,430.67122127,0.00019212,2]
[364594834,1749154675010,430.0,0.00019212,2]
[364594835,1749154678507,440.0,0.00019212,2]
[364594836,1749154678736,440.0,0.00019486,2]
[364594837,1749154678974,160.18082983,0.0001976,2]
[364594838,1749154684522,440.0,0.00019212,2]
[364594839,1749154684784,440.0,0.00019486,2]
[364594840,1749154685040,440.0,0.0001976,2]
[364594841,1749154685136,440.0,0.00019212,2]
[364594842,1749154685404,166.48694771,0.00019486,2]